{"text_format":"3","workbook":"xlsx","n_sheets":13,"sheets":["Inizio","Concetti di base","Introduzione alle funzioni","MEDIA","MIN e MAX","Data e ora","Unire testo e numeri","Istruzioni SE","CERCA.VERT","Funzioni condizionali","Creazione guidata Funzione","Errori nelle formule","Altre informazioni"],"not_rendered":{"images":32,"defined_names":21},"read":"whole","date_system":"1900"}

{"sheet":"Inizio","index":0,"n_rows":4,"n_cols":1,"rows_kept":4}
[]
["Guida introduttiva alle formule"]
["Bastano pochi semplici passaggi per iniziare a creare formule e funzioni in Excel, l'app per fogli di calcolo \npiù famosa al mondo."]
["Per tornare all'inizio, premi CTRL+HOME. Per iniziare il tour, premi CTRL+PGGIÙ."]

{"sheet":"Concetti di base","index":1,"n_rows":43,"n_cols":10,"rows_kept":43}
["Concetti di base: matematica con Excel"]
["In Excel si può sommare, sottrarre, moltiplicare e dividere senza usare le funzioni predefinite. Basta usare alcuni operatori di base: +, -, *, /. Tutte le formule iniziano con un segno di uguale (=).\n",null,"Numeri da usare:",null,"Operazione:","Formule:","Risposte:"]
["Per sommare, seleziona la cella F3, digita =C3+C4, quindi premi INVIO. \n",null,1,null,"Addizione (+) ",null,{"$f":"C3+C4","v":3}]
["Per sottrarre, seleziona la cella F4, digita =C3-C4, quindi premi INVIO. ",null,2,null,"Sottrazione (-) ",null,{"$f":"C3-C4","v":-1}]
["Per moltiplicare, seleziona la cella F5, digita =C3*C4, quindi premi INVIO.\n",{"$nulls":3},"Moltiplicazione (*) ",null,{"$f":"C3*C4","v":2}]
["Per dividere, seleziona la cella F6, digita =C3/C4, quindi premi INVIO.\n",{"$nulls":3},"Divisione (/) ",null,{"$f":"C3/C4","v":0.5}]
["Prova: cambia i numeri nelle celle C3 e C4 e osserva come i risultati delle formule cambiano automaticamente.",{"$nulls":3},"Potenza (^) ",null,{"$f":"C3^C4","v":1}]
["CREDITO EXTRA: Per elevare un valore a una potenza, usa il simbolo dell'accento circonflesso (^), ad esempio =A1^A2. Per immetterlo, premi MAIUSC+ì. Nella cella F7 immetti =C3^C4."]
["Altri dettagli"]
["Passaggio successivo"]
["Altre informazioni su formule, celle e intervalli"]
["Excel è costituito da singole celle raggruppate in righe e colonne. Le righe sono numerate, le colonne sono identificate da lettere. Sono presenti più di 1 milione di righe e 16.000 colonne e si possono inserire formule in qualsiasi di esse. \n"]
["Le formule possono contenere riferimenti di cella, intervalli di riferimenti di cella, operatori e costanti. Ecco alcuni esempi di formule:\n\n=A1+B1\n=10+20\n=SOMMA(A1:A10)\n\n"]
["Nel terzo esempio abbiamo usato la funzione SOMMA. Una funzione è un comando predefinito che prende uno o più valori, li calcola in un certo modo e restituisce un risultato. Ad esempio, la funzione SOMMA prende i riferimenti di cella o gli intervalli di celle specificati e ne calcola il totale. In questo esempio prende le celle da A1 a A10 e ne calcola il totale. Excel include più di 400 funzioni, disponibili nella scheda Formule.\n"]
["Le formule con funzioni iniziano con un segno di uguale, seguito dal nome della funzione con i relativi argomenti (i valori usati dalla funzione per il calcolo) racchiusi tra parentesi. \n"]
["Per confermare una formula bisogna premere INVIO. A questo punto viene eseguito il calcolo della formula e nella cella viene visualizzato il risultato. Per vedere la formula vera e propria, osserva la barra della formula sotto la barra multifunzione oppure premi F2 per attivare la modalità di modifica, che consente di visualizzare la formula nella cella. Premi di nuovo INVIO per completare la formula e calcolare il risultato.\n\n"]
["Alcune spiegazioni sulle formule"]
["=10+20 è una formula in cui 10 e 20 sono costanti e il segno + è l'operatore."]
["=SOMMA(A1:A10) è una formula in cui SOMMA è il nome della funzione, le parentesi di apertura e chiusura racchiudono gli argomenti della formula e A1:A10 è l'intervallo di celle per la funzione."]
["=SOMMA(A1:A10;C1:C10) è una formula in cui SOMMA è il nome della funzione, le parentesi di apertura e chiusura racchiudono gli argomenti della formula e A1:A10;C1:C10 sono gli intervalli di celle per la funzione separati da un punto e virgola."]
["INFORMAZIONI UTILI: Le costanti sono i valori che vengono immessi nelle celle o nelle formule. Anche se =10+20 può produrre lo stesso risultato di =A1+B1, è buona norma evitare le costanti. Perché? Poiché per vedere una costante può essere necessario selezionare la cella e cercarla. Di conseguenza può risultare difficile da cambiare in un secondo momento. È molto più semplice inserire le costanti nelle celle, dove possono essere modificate facilmente e aggiunte alle formule mediante riferimento.\n\nAd esempio: seleziona la cella gialla con il numero 12 qui sotto. Come vedi, abbiamo usato la funzione SOMMA con un intervallo di celle. Non abbiamo digitato \"4\" o \"8\" direttamente nella formula. \n"]
["Indietro"]
["Avanti"]
["Altre informazioni sul Web"]
["Usare Excel come calcolatrice"]
["Panoramica delle formule in Excel"]
["Funzioni di Excel (in base alla categoria) "]
["Funzioni di Excel (in ordine alfabetico) "]
["Formazione gratuita su Excel disponibile online"]
{"$rows_empty":10}
[{"$nulls":9},"Valori"]
[{"$nulls":9},4]
[{"$nulls":9},8]
[{"$nulls":9},{"$f":"SUM(J41:J42)","v":12}]

{"sheet":"Introduzione alle funzioni","index":2,"n_rows":51,"n_cols":7,"rows_kept":51}
["Introduzione alle funzioni"]
["Con le funzioni si possono svolgere molte azioni, ad esempio eseguire operazioni matematiche, cercare valori o persino calcolare date e ore. Proviamo a sommare valori in diversi modi con la funzione SOMMA.",null,"Frutta","Quantità",null,"Carne","Quantità"]
["Nella colonna Quantità per Frutta (cella D7), immetti =SOMMA(D3:D6) oppure digita =SOMMA( e seleziona l'intervallo con il mouse, quindi premi INVIO. Vengono sommati i valori presenti nelle D3, D4, D5 e D6. La risposta dovrebbe essere 170.\n",null,"Mele",50,null,"Manzo",50]
["Ora proviamo Somma automatica. Seleziona la cella sotto la colonna relativa a Carne (cella G7), quindi passa a Formule > Somma automatica e seleziona SOMMA. La formula verrà inserita automaticamente. Premi INVIO per confermarla. La funzionalità Somma automatica ha tutte le funzioni più comuni.\n",null,"Arance",20,null,"Pollo",30]
["Ecco una scelta rapida da tastiera specifica. Seleziona la cella D15, premi ALT= e quindi INVIO. La funzione SOMMA viene immessa automaticamente.",null,"Banane",60,null,"Maiale",10]
["Altri dettagli",null,"Limoni",40,null,"Pesce",50]
["CREDITO EXTRA\nProva a usare la funzione CONTA.NUMERI con uno dei metodi già sperimentati. La funzione CONTA.NUMERI conta il numero di celle che contengono numeri all'interno di un intervallo.",null,"SOMMA > ",{"$f":"SUM(D3:D6)","v":170},null,"SOMMA > "]
["Passaggio successivo"]
["Altre informazioni sulle funzioni",null,"Articolo","Quantità",null,"Articolo","Quantità"]
["Passa alla scheda Formule e scorri la Libreria di funzioni, in cui le funzioni sono elencate per categoria, ad esempio Testo, Data e ora e così via. Inserisci funzione consente di cercare le funzioni per nome e avviare una procedura guidata per creare la formula. \n\nQuando inizi a digitare il nome di una funzione dopo aver premuto =, Excel avvia Intellisense, che elenca tutte le funzioni che iniziano con le lettere digitate. Quando trovi quella che vuoi, premi TAB. Excel completa automaticamente il nome della funzione e inserisce la parentesi di apertura. Mostra anche gli argomenti facoltativi e obbligatori. \n\n\n\nEsaminiamo in dettaglio alcune funzioni. La funzione SOMMA è strutturata in questo modo:",null,"Pane",50,null,"Pane",50]
["Se la funzione SOMMA potesse parlare, direbbe: \"Restituisci la somma di tutti i valori nelle celle da D35 a D38 e tutta la colonna H\". SOMMA è il nome della funzione, D35:D38 è il primo argomento intervallo, che in genere è necessario, e H:H è il secondo argomento intervallo; i due sono separati da una virgola. Ora proviamone una che non richiede argomenti.\n",null,"Ciambelle",100,null,"Ciambelle",100]
["La funzione OGGI restituisce la data corrente. Viene aggiornata automaticamente quando Excel ricalcola.",null,"Biscotti",40,null,"Biscotti",40]
["GUARDA QUI\nSeleziona queste celle. Nell'angolo in basso a destra della finestra di Excel troverai SOMMA: 170 nella barra inferiore. Si chiama Barra di stato e rappresenta semplicemente un altro modo per trovare rapidamente un totale e altri dettagli su una cella o un intervallo. ",null,"Torte",50,null,"Torte",50]
["DETTAGLIO IMPORTANTE\nFai doppio clic in questa cella. Noterai il valore 100 verso la fine. Anche se è possibile inserire numeri in una formula come questa, non è consigliabile farlo a meno che non sia assolutamente necessario. Si tratta di un valore costante ed è facile dimenticarsi della sua presenza. È preferibile fare riferimento a un'altra cella, come la cella F51. In questo modo sarà più visibile e non nascosto all'interno di una formula. ",null,"Crostate",20,null,"Crostate",20]
["Altre informazioni sul Web",null,"SOMMA > ",null,null,"CONTA.NUMERI >"]
["Informazioni complete sulla funzione SOMMA"]
["Usare Somma automatica per sommare numeri"]
["Informazioni complete sulla funzione CONTA.NUMERI"]
["Formazione gratuita su Excel disponibile online"]
["Torna all'inizio"]
["Passaggio successivo"]
{"$rows_empty":12}
[null,null,"Frutta","Quantità"]
[null,null,"Mele",50]
[null,null,"Arance",20]
[null,null,"Banane",60]
[null,null,"Limoni",40]
[null,null,"SOMMA > ",{"$f":"SUM(D35:D38)","v":170}]
[]
[]
[]
[]
[null,null,"Articolo","Quantità"]
[null,null,"Automobili",20]
[null,null,"Autocarri",10]
[null,null,"Biciclette",10]
[null,null,"Pattini",40]
[]
[{"$nulls":3},"Totale:",null,"Valore aggiuntivo","Nuovo totale"]
[{"$nulls":3},{"$f":"SUM(D45:D48,100)","v":180},null,100,{"$f":"SUM(D45:D48,F51)","v":180}]

{"sheet":"MEDIA","index":3,"n_rows":15,"n_cols":7,"rows_kept":15}
["Funzione MEDIA"]
["La funzione MEDIA consente di ottenere la media dei numeri in un intervallo di celle.",null,"Frutta","Quantità",null,"Carne","Quantità"]
["Seleziona la cella D7, quindi usa Somma automatica per aggiungere una funzione MEDIA.",null,"Mele",50,null,"Manzo",50]
["Ora seleziona la cella G7 e immetti una funzione MEDIA digitando =MEDIA(G3:G6). ",null,"Arance",20,null,"Pollo",30]
["Nella cella D15 puoi usare la creazione guidata Somma automatica oppure immettere manualmente una funzione MEDIA. ",null,"Banane",60,null,"Maiale",10]
["GUARDA QUI\nSeleziona un intervallo di numeri, quindi osserva la media immediata riportata sulla barra di stato.\n",null,"Limoni",40,null,"Pesce",50]
["Attiva il foglio precedente",null,"MEDIA >",null,null,"MEDIA >"]
["Vai al foglio successivo"]
["CREDITO EXTRA\nProva a usare MEDIANA o MODA qui. \n\nMEDIANA fornisce il valore mediano del set di dati, mentre \nMODA fornisce quello con più occorrenze.\n",null,"Articolo","Quantità",null,"Articolo","Quantità"]
["Collegamenti ad altre informazioni sul Web",null,"Pane",50,null,"Pane",50]
["Seleziona per ottenere informazioni complete dal Web sulla funzione MEDIA",null,"Ciambelle",100,null,"Ciambelle",100]
["Seleziona per ottenere informazioni complete dal Web sulla funzione MEDIANA",null,"Biscotti",40,null,"Biscotti",40]
["Seleziona per ottenere informazioni complete dal Web sulla funzione MODA",null,"Torte",50,null,"Torte",50]
["Seleziona per ottenere informazioni sulle risorse di formazione gratuita su Excel sul Web",null,"Crostate",20,null,"Crostate",20]
[null,null,"MEDIA >"]

{"sheet":"MIN e MAX","index":4,"n_rows":19,"n_cols":7,"rows_kept":19}
["Funzioni MIN e MAX"]
["La funzione MIN consente di ottenere il numero minimo in un intervallo di celle.",null,"Frutta","Quantità",null,"Carne","Quantità"]
["La funzione MAX consente di ottenere il numero massimo in un intervallo di celle.",null,"Mele",50,null,"Manzo",50]
["Seleziona la cella D7, quindi usa la procedura guidata Somma automatica per aggiungere una funzione MIN.\n",null,"Arance",20,null,"Pollo",30]
["Ora seleziona la cella G7 e immetti una funzione MAX digitando =MAX(G3:G6).\n",null,"Banane",60,null,"Maiale",10]
["Nella cella D15 puoi usare la creazione guidata Somma automatica oppure immettere manualmente una funzione MIN o MAX. \n",null,"Limoni",40,null,"Pesce",50]
["Altre informazioni sul Web\n",null,"MIN >",null,null,"MAX >"]
["Informazioni complete sulla funzione MIN"]
["Informazioni complete sulla funzione MAX",null,"Articolo","Quantità",null,"Articolo","Quantità"]
["Formazione gratuita su Excel disponibile online",null,"Pane",50,null,"Pane",50]
["INFORMAZIONI UTILI\nÈ possibile usare MIN o MAX con più intervalli o valori per visualizzare il maggiore o il minore di tali valori, ad esempio =MIN(A1:A10;B1:B10) oppure =MAX(A1:A10;B1), dove B1 contiene un valore soglia, come 10, nel qual caso la formula non restituirebbe mai un risultato inferiore a 10.\n",null,"Ciambelle",100,null,"Ciambelle",100]
[null,null,"Biscotti",40,null,"Biscotti",40]
[null,null,"Torte",50,null,"Torte",50]
[null,null,"Crostate",20,null,"Crostate",20]
[null,null,"MIN o MAX >",{"$nulls":3},{"$f":"MIN(G10:G14,10)","v":10}]
[]
[]
[]
["È possibile usare MIN o MAX con più intervalli o valori per visualizzare il maggiore o il minore di tali valori, ad esempio =MIN(A1:A10;B1:B10) oppure =MAX(A1:A10;10)."]

{"sheet":"Data e ora","index":5,"n_rows":47,"n_cols":6,"rows_kept":47,"merged":[[4,2,4,3],[26,2,26,3],[30,2,30,3],[44,2,44,3]]}
["Funzioni di data"]
["Excel può fornire la data corrente, in base alle impostazioni internazionali del computer. È anche possibile sommare e sottrarre le date."]
["Osserviamo la funzione OGGI, che visualizza la data corrente. Si tratta di funzioni attive, o volatili, per cui se la cartella di lavoro viene aperta domani, sarà visualizzata la data di domani. Immetti =OGGI() nella cella D6. \n"]
["Sottrarre date: immetti il tuo prossimo compleanno nel formato GG/MM/AA nella cella D7 e osserva come Excel ti indica il numero di giorni rimanenti usando =D7-D6 nella cella D8.\n"]
["Sommare date: supponiamo di voler sapere la data di scadenza di una bolletta o quando devi restituire un libro alla biblioteca. Per scoprirlo, puoi aggiungere giorni a una data. Nella cella D10 immetti un numero casuale di giorni. Nella cella D11 abbiamo sommato =D6+D10 per calcolare la data di scadenza a partire da oggi.\n",null,"Funzioni di data"]
["INFORMAZIONI UTILI\nExcel mantiene le date e le ore in base al numero di giorni a partire dal 1 gennaio 1900. Le ore vengono mantenute in parti frazionarie della giornata in base ai minuti. Quindi, 01/01/2017 12:30 in realtà è memorizzata come 42736,5208. Se la data o l'ora viene visualizzata sotto forma di numeri di questo tipo, premi CTRL+1 > Numero e seleziona un formato Data o Ora. ",null,"Data odierna:",null,null,{"$f":"IF(D6=TODAY(),\"Ben fatto!\",\"\")","v":""}]
["DETTAGLIO IMPORTANTE\nSe non vuoi visualizzare un numero negativo perché non hai ancora immesso il tuo compleanno, puoi usare la funzione SE in questo modo: =SE(D7=\"\";\"\";D7-D6), che indica \"SE D7 è uguale a niente, non mostrare niente, altrimenti mostra D7 meno D6\".\n",null,"Tuo compleanno:"]
["Funzioni di ora",null,"Giorni mancanti al compleanno:",{"$f":"D7-D6","v":0}]
["Excel può fornire l'ora corrente, in base alle impostazioni internazionali del computer. È anche possibile sommare e sottrarre le ore. Ad esempio, può essere necessario tenere traccia del numero di ore lavorate da un dipendente ogni settimana e calcolare la retribuzione e lo straordinario.\n"]
["Nella cella D28 immetti =ADESSO(), che visualizza l'ora corrente e viene aggiornata ogni volta che Excel la calcola. Per cambiare il formato dell'ora, scegli CTRL+1 > Numero > Ora e seleziona il formato che preferisci.\n",null,"Giorni di tolleranza:"]
["Sommare le ore di diversi orari: nella cella D36 abbiamo immesso =((D35-D32)-(D34-D33))*24, che calcola le ore di inizio e fine di un dipendente e quindi sottrae il tempo trascorso a pranzo. La parte *24 alla fine della formula converte in ore la parte frazionaria della giornata usata da Excel. Sarà però necessario formattare la cella come Numero. A questo scopo, passa a Home > Formato > Celle (CTRL+1) > Numero > Numero > 2 decimali.\n\n",null,"Scadenza fattura:",{"$f":"D6+D10","v":"00:00:00"}]
["Se questa formula potesse parlare, direbbe: \"sottrai Ora uscita da Ora entrata, quindi sottrai le ore Uscita/Rientro pranzo e moltiplica per 24 per convertire il tempo frazionario di Excel in ore\" oppure =((Ora uscita - Ora entrata)-(Uscita pranzo - Rientro pranzo))*24."]
["Indietro"]
["Avanti"]
["Altre informazioni sul Web"]
["Informazioni complete sulla funzione OGGI"]
["Informazioni complete sulla funzione ADESSO"]
["Informazioni complete sulla funzione DATA"]
["Formazione gratuita su Excel disponibile online"]
{"$rows_empty":7}
[null,null,"Funzioni di ora"]
[null,null,"Ora corrente:"]
[]
[]
[null,null,"Ore giornaliere lavorate"]
[null,null,"Ora entrata:","08:00:00"]
[null,null,"Uscita pranzo:","12:00:00"]
[null,null,"Rientro pranzo:","13:00:00"]
[null,null,"Ora uscita:","17:00:00"]
[null,null,"Totale ore:",{"$f":"((D35-D32)-(D34-D33))*24","v":8.000000000000002}]
{"$rows_empty":8}
[null,null,"Data e ora statiche"]
[null,null,"Data:","2017-09-27"]
[null,null,"Ora:","08:52:00"]

{"sheet":"Unire testo e numeri","index":6,"n_rows":37,"n_cols":6,"rows_kept":37,"merged":[[26,2,26,3],[30,2,30,3],[34,2,34,3]]}
["Unione del testo contenuto in celle diverse"]
["In Excel capita spesso di dover unire il testo presente in celle diverse. Un esempio molto comune è un elenco di nomi e cognomi da combinare sotto forma di nome, cognome oppure nome completo. In Excel si può fare usando il simbolo della e commerciale (&), che puoi inserire con MAIUSC+6.\n",null,"Nome","Cognome","Cognome, Nome","Nome completo"]
["Nella cella E3 immetti =D3&C3 per unire i cognomi e i nomi. \n",null,"Olga","Panicucci",{"$f":"D3&\", \"&C3","v":"Panicucci, Olga"},{"$f":"C3&\" \"&D3","v":"Olga Panicucci"}]
["PanicucciOlga non è il risultato ideale. Dobbiamo aggiungere una virgola e uno spazio. A questo scopo usiamo le virgolette per creare una nuova stringa di testo. Questa volta immetti =D3&\", \"&C3. La parte &\", \"& consente di unire una virgola e uno spazio al testo nelle celle.\n",null,"Pio","Udinesi"]
["Per creare il nome completo, uniamo prima di tutto il nome e il cognome, ma usando uno spazio senza virgola. In F3 immetti =C3&\" \"&D3.\n",null,"Albertino","Mazzanti"]
["Altri dettagli",null,"Fiamma","Greco"]
["Avanti",null,"Carmelo","Barese"]
["Uso di testo e numeri insieme",null,"Nazzareno","Romani"]
["Ora usiamo il simbolo & per unire testo e numeri, non solo testo e testo\n\nOsserva le celle C28:D29. Vedi che la data e le ore si trovano in celle separate? Puoi unirle con il simbolo & come vedrai nelle celle C32:C33, ma il risultato non è ideale. Non sapendo come vuoi formattare i numeri, Excel usa il formato più basilare, che in questo caso è la data seriale. Dobbiamo indicare esplicitamente a Excel come formattare la parte numerica della formula, in modo che venga visualizzata come vuoi nella stringa di testo risultante. Per farlo, puoi usare la funzione TESTO e un codice di formato.",null,"Cataldo","Capon"]
["Nella cella C36 immetti =C28&\" \"&TESTO(D28;\"GG/MM/AAAA\"). GG/MM/AAAA è il codice di formato italiano per giorno/mese/anno, ad esempio 25/09/2017.\n",null,"Martina","Milani"]
["Nella cella C37 immetti =C29&\" \"&TESTO(D29;\"H:MM\"). H:MM è il codice di formato italiano per ore:minuti, ad esempio 13:30.\n\n"]
["GUARDA QUI\nLe formule, soprattutto quelle di grandi dimensioni, possono risultare difficile da leggere, ma è possibile separare le parti con spazi, come in questo esempio:\n\n=C28 & \" \" & TESTO(D28;\"GG/MM/AAAA\")"]
["CURIOSITÀ\nSe non sai quale codice di formato usare, puoi scegliere CTRL+1 > Numero per formattare le celle come preferisci. Seleziona l'opzione Personalizzato. Puoi copiare nella formula il codice di formato visualizzato."]
["Altre informazioni sul Web"]
["Informazioni complete sulla funzione TESTO"]
["Combinare testo e numeri"]
["Formazione gratuita su Excel disponibile online"]
{"$rows_empty":9}
[null,null,"Usare testo e numeri"]
[null,null,"Data odierna:",{"$f":"TODAY()","v":"2019-10-10"}]
[null,null,"Ora corrente:",{"$f":"NOW()","v":43748.561416666664}]
[]
[null,null,"Unione di testo e numeri"]
[null,null,{"$f":"C28&\" \"&D28","v":"Data odierna: 43748"}]
[null,null,{"$f":"C29&\" \"&D29","v":"Ora corrente: 43748,5614166667"}]
[]
[null,null,"Formattazione di testo e numeri"]
[null,null,{"$f":"C28 &\" \"& TEXT(D28,\"GG/MM/AAAA\")","v":"Data odierna: 10/10/2019"}]
[null,null,{"$f":"C29&\" \"&TEXT(D29,\"H:MM\")","v":"Ora corrente: 13:28"}]

{"sheet":"Istruzioni SE","index":7,"n_rows":37,"n_cols":6,"rows_kept":37,"merged":[[7,2,7,3]]}
["Istruzioni SE"]
["Le istruzioni SE permettono di eseguire confronti logici tra condizioni. Un'istruzione SE in genere indica di eseguire una determinata operazione se una condizione è vera e di eseguire un'altra operazione in caso contrario. Le formule possono restituire testo, valori o altri calcoli."]
["Nella cella D9 immetti =SE(C9=\"Mela\";VERO;FALSO). La risposta corretta è VERO. \n"]
["Copia D9 in D10. Qui la risposta dovrebbe essere FALSO perché un'arancia non è una mela.\n"]
["Prova un altro esempio osservando la formula nella cella D12. Abbiamo già inserito =SE(C12<100;\"Minore di 100\";\"Maggiore di o uguale a 100\"). Cosa succede se si immette un numero maggiore di 100 nella cella C12?\n"]
["DETTAGLIO IMPORTANTE\nVERO e FALSO sono diverse dalle altre parole usate nelle formule di Excel in quanto non è necessario racchiuderle tra virgolette e vengono formattate automaticamente in maiuscolo. Anche i numeri non devono necessariamente essere racchiusi tra virgolette. Il testo normale come Sì o No, invece, deve essere racchiuso tra virgolette in questo modo: \n=SE(C9=\"Mela\";\"Sì\";\"No\")"]
["Altri dettagli"]
["Avanti",null,"Istruzioni SE"]
["Istruzione SE con un'altra funzione",null,"Mela"]
["Le istruzioni SE possono anche forzare l'esecuzione di altri calcoli se è soddisfatta una determinata condizione. Qui valuteremo una cella per stabilire se deve essere addebitata l'IVA e per calcolarla, se la condizione è vera.\n",null,"Arancia"]
["Nella cella F33 abbiamo inserito =SE(E33=\"Sì\";F31*IVA;0), con l'IVA configurata come intervallo denominato con il valore 0,0825. La formula indica: se la cella E33 equivale a Sì, moltiplica la cella F31 per l'IVA, altrimenti restituisci il valore 0.\n\nProva a specificare No al posto di Sì nella cella E33 per vedere come cambia il calcolo."]
["Abbiamo quindi aggiunto un'istruzione SE per calcolare le spese di spedizione, se necessarie. Nella cella F35 vedrai =SE(E35=\"Sì\";SOMMA(D28:D29)*1,25;0). Questo significa: \"se la cella E35 contiene Sì, moltiplica per 1,25 la somma della colonna Quantità nella tabella soprastante, altrimenti restituisci il valore 0\".\n",null,50,{"$f":"IF(C12<100,\"Minore di 100\",\"Maggiore di 100\")","v":"Minore di 100"}]
["Quindi, sostituisci il valore 1,25 nella formula nella cella F35 con \"Spedizione\". Quando inizi a digitare, la funzione di correzione automatica di Excel dovrebbe trovare automaticamente la voce. Quando accade, premi TAB per immetterla. Questo è un intervallo denominato che è stato immesso da Formule > Definisci nome. A questo punto, se è necessario modificare le spese di spedizione, sarà sufficiente farlo in un unico posto e usare il nome Spedizione ovunque nella cartella di lavoro.\n\n"]
["INFORMAZIONI UTILI\nQuando si crea una formula, Excel inserisce automaticamente bordi colorati intorno a tutti gli intervalli a cui viene fatto riferimento nella formula e gli intervalli corrispondenti nella formula saranno dello stesso colore. Per osservare questo effetto, seleziona la cella F33 e premi F2 per modificare la formula."]
["L'ESPERTO SUGGERISCE\nGli intervalli denominati consentono di definire i termini o i valori in un'unica posizione per poterli riutilizzare in una cartella di lavoro. Per vedere tutti gli intervalli denominati usati in questa cartella di lavoro, scegli Formule > Gestione nomi. Fai clic qui per altre informazioni.\n"]
["Indietro"]
["Avanti"]
["Altre informazioni sul Web"]
["Informazioni complete sulla funzione SE"]
["Informazioni complete sulla funzione PIÙ.SE"]
["Istruzioni SE avanzate"]
["Formazione gratuita su Excel disponibile online"]
[]
[]
[]
[]
[null,null,"Articolo","Quantità","Costo","Totale"]
[null,null,"Widget",2,{"v":9.760711585683554,"d":"€ 9.76"},{"$f":"'Istruzioni SE'!$E$28:$E$29*'Istruzioni SE'!$D$28:$D$29","v":{"v":19.521423171367108,"d":"€ 19.52"}}]
[null,null,"Oggetto",3,{"v":3.4189202461080024,"d":"€ 3.42"},{"$f":"'Istruzioni SE'!$E$28:$E$29*'Istruzioni SE'!$D$28:$D$29","v":{"v":10.256760738324008,"d":"€ 10.26"}}]
[]
[{"$nulls":3},"Subtotale",{"$f":"SUM('Istruzioni SE'!$E$28:$E$29)","v":{"v":13.179631831791557,"d":"€ 13.18"}},{"$f":"SUM('Istruzioni SE'!F28:F29)","v":{"v":29.778183909691116,"d":"€ 29.78"}}]
[]
[{"$nulls":3},"IVA?","Sì",{"$f":"IF(E33=\"Sì\",F31*IVA,0)","v":{"v":2.456700172549517,"d":"€ 2.46"}}]
[]
[{"$nulls":3},"Spedizione?","Sì",{"$f":"IF(E35=\"Sì\",SUM(D28:D29)*1.25,0)","v":{"v":6.25,"d":"€ 6.25"}}]
[]
[{"$nulls":3},"Totale",null,{"$f":"SUM(F33,F31,F35)","v":{"v":38.48488408224063,"d":"€ 38.48"}}]

{"sheet":"CERCA.VERT","index":8,"n_rows":43,"n_cols":7,"rows_kept":43}
["CERCA.VERT"]
["CERCA.VERT è una delle funzioni più usate in Excel. CERCA.VERT consente di cercare un valore in una colonna a sinistra, quindi restituisce le informazioni in un'altra colonna a destra se trova una corrispondenza. CERCA.VERT dice:\n"]
["=CERCA.VERT(A1;B:C;2;FALSO)"]
["Cosa vuoi cercare?"]
["Se lo trovi, quante colonne a destra vuoi ottenere un valore?"]
["Dove lo vuoi cercare?"]
["Vuoi una corrispondenza esatta o approssimativa?"]
["Nella cella D22 immetti =CERCA.VERT(C22;C17:D20;2;FALSO). La risposta corretta per Mele è 50. CERCA.VERT ha cercato il valore Mele, l'ha trovato e quindi ha restituito la quantità una colonna più a destra.\n\n"]
["Ora prova autonomamente nella sezione Carne, nella cella G22. Dovresti ottenere =CERCA.VERT(F22;F17:G20;2;FALSO).\n\n"]
["ESPERIMENTO\nProva a selezionare altri articoli negli elenchi a discesa. Noterai che i valori nelle celle dei risultati vengono aggiornati immediatamente."]
["Altri dettagli"]
["Avanti"]
["CERCA.VERT e #N/D"]
["Presto o tardi ti capiterà che CERCA.VERT non riesca a trovare ciò che hai chiesto e restituisca un errore (#N/D). Questo può succedere, ad esempio, se il valore di ricerca non esiste oppure se la cella di riferimento non contiene ancora un valore.\n"]
["Se sai che il valore di ricerca esiste, ma vuoi nascondere l'errore se la cella di ricerca è vuota, puoi usare l'istruzione SE. In questo caso, integriamo la formula CERCA.VERT esistente nella cella D43 in questo modo:\n\n=SE(C43=\"\";\"\";CERCA.VERT(C43;C37:D41;2;FALSO))\n\nQuesto significa: se la cella C43 equivale a niente (\"\"), non restituire niente, altrimenti restituisci i risultati di CERCA.VERT. Nota la seconda parentesi di chiusura alla fine della formula, che conclude l'istruzione SE.\n"]
["Se non sei certo che il valore di ricerca esista ma vuoi comunque nascondere l'errore #N/D, puoi usare una funzione di gestione degli errori denominata SE.ERRORE nella cella G43: =SE.ERRORE(CERCA.VERT(F43;F37:G41;2;FALSO);\"\"). SE.ERRORE indica: se CERCA.VERT restituisce un risultato valido, visualizzalo, altrimenti non visualizzare niente (\"\"). In questo caso non viene visualizzato niente (\"\"), ma si possono anche usare numeri (0,1, 2 e così via) o un testo, ad esempio \"La formula non è corretta\".\n",null,"Frutta","Quantità",null,"Carne","Quantità"]
["DETTAGLIO IMPORTANTE\nSE.ERRORE è un gestore di errori che rimuove la visualizzazione di tutti gli errori che possono essere generati dalla formula. Questo può causare problemi se Excel notifica che nella formula è presente un errore effettivo che deve essere risolto.\n\nIn generale è preferibile non aggiungere gestori di errori alle formule se non si è assolutamente certi che funzionino correttamente.",null,"Mele",50,null,"Manzo",50]
["Indietro",null,"Arance",20,null,"Pollo",30]
["Avanti",null,"Banane",60,null,"Maiale",10]
["Altre informazioni sul Web",null,"Limoni",40,null,"Pesce",50]
["Informazioni complete sulla funzione CERCA.VERT"]
["Informazioni complete sulle funzioni INDICE/CONFRONTA",null,"Mele",null,null,"Maiale"]
["Informazioni complete sulla funzione SE.ERRORE"]
["Usare le tabelle pivot per analizzare i dati di un foglio di lavoro"]
["Formazione gratuita su Excel disponibile online"]
{"$rows_empty":9}
[null,null,"Se la funzione SOMMA nella cella D42 potesse parlare, direbbe: Somma i valori nelle celle D38, D39, D40 e D41."]
[null,null,"Articolo","Quantità",null,"Articolo","Quantità"]
[null,null,"Pane",50,null,"Pane",50]
[null,null,"Ciambelle",100,null,"Ciambelle",100]
[null,null,"Biscotti",40,null,"Biscotti",40]
[null,null,"Torte",50,null,"Torte",50]
[null,null,"Crostate",20,null,"Crostate",20]
[]
[{"$nulls":3},{"$f":"VLOOKUP(C43,C37:D41,2,FALSE)","v":{"$error":"#N/A"}},null,"Pasticceria",{"$f":"IFERROR(VLOOKUP(F43,F37:G41,2,FALSE),\"\")","v":""}]

{"sheet":"Funzioni condizionali","index":9,"n_rows":123,"n_cols":34,"rows_kept":123}
["Funzioni condizionali: SOMMA.SE"]
["Le funzioni condizionali consentono di calcolare la somma, la media e il conteggio o di ottenere il valore minimo o massimo di un intervallo in base a una condizione o a un criterio specificato. Ad esempio, si può calcolare quante mele ci sono tra tutti i frutti inclusi nell'elenco. Oppure il numero di arance di tipo Florida.",null,"Frutta","Quantità",null,"Frutta","Tipo","Quantità",{"$nulls":17},"Frutta",null,"Mele",null,"Arance",null,"Banane",null,"Limoni"]
["SOMMA.SE consente di sommare in un intervallo sulla base di un criterio specifico cercato in un altro intervallo, come il numero di mele. Seleziona la cella D17 e digita =SOMMA.SE(C3:C14;C17;D3:D14). La funzione SOMMA.SE è strutturata in questo modo:",null,"Mele",50,null,"Mele","Fuji",50,{"$nulls":17},"Mele",null,"Fuji",null,"Florida",null,"Cavendish",null,"Rough"]
[{"$f":"SUMIF(C3:C14,C17,D3:D14)","v":150},null,"Arance",20,null,"Arance","Florida",20,{"$nulls":17},"Arance",null,"Honeycrisp",null,"Navel",null,"Lady Finger",null,"Eureka"]
["Quale intervallo vuoi esaminare?",null,"Banane",60,null,"Banane","Cavendish",60,{"$nulls":17},"Banane"]
["Quale valore (testo o numero) vuoi cercare?",null,"Limoni",40,null,"Limoni","Rough",40,{"$nulls":17},"Limoni"]
["Per ogni corrispondenza trovata, quale intervallo vuoi sommare?",null,"Mele",50,null,"Mele","Honeycrisp",50]
["SOMMA.PIÙ.SE equivale a SOMMA.SE, ma consente di usare più criteri. Quindi, in questo esempio, è possibile cercare frutta e tipo, anziché solo frutta. Seleziona la cella H17 e digita =SOMMA.PIÙ.SE(H3:H14;F3:F14;F17;G3:G14;G17). La funzione SOMMA.PIÙ.SE è strutturata in questo modo:\n",null,"Arance",20,null,"Arance","Navel",20]
["=SOMMA.PIÙ.SE(H3:H14;F3:F14;F17;G3:G14;G17)",null,"Banane",60,null,"Banane","Lady Finger",60]
["Quale intervallo vuoi sommare?",null,"Limoni",40,null,"Limoni","Eureka",40]
["Questo è il primo intervallo in cui cercare corrispondenze",null,"Mele",50,null,"Mele","Honeycrisp",50]
["Questo è il criterio per la prima corrispondenza",null,"Arance",20,null,"Arance","Navel",20]
["Questo è il secondo intervallo in cui cercare corrispondenze",null,"Banane",60,null,"Banane","Cavendish",60]
["Questo è il criterio per la seconda corrispondenza",null,"Limoni",40,null,"Limoni","Eureka",40]
["L'ESPERTO SUGGERISCE\nOgnuna delle celle Frutta e Tipo include un elenco a discesa in cui è possibile selezionare diversi frutti. Prova e osserva come le formule vengono aggiornate automaticamente."]
["Altri dettagli",null,"Frutta","SOMMA.SE",null,"Frutta","Tipo","SOMMA.PIÙ.SE"]
["Passaggio successivo",null,"Mele",null,null,"Arance","Florida"]
["Funzioni condizionali: CONTA.SE"]
["CONTA.SE e CONTA.PIÙ.SE consentono di contare i valori in un intervallo in base a un determinato criterio. Sono un po' diverse dalle altre funzioni SE e PIÙ.SE in quanto hanno solo un intervallo di criteri e criteri. Non valutano un intervallo per poi cercare in un altro per riepilogare."]
["Seleziona la cella D64 e digita =CONTA.SE(C50:C61;C64). La funzione CONTA.SE è strutturata in questo modo:"]
["=CONTA.SE(C50:C61;C64)"]
["Quale intervallo vuoi esaminare?"]
["Quale valore (testo o numero) vuoi cercare?"]
["CONTA.PIÙ.SE equivale a SOMMA.SE, ma consente di usare più criteri. Pertanto, in questo esempio, è possibile cercare frutta e tipo, anziché solo frutta. Seleziona la cella H64 e digita =CONTA.PIÙ.SE(F50:F61;F64;G50:G61;G64). La funzione CONTA.PIÙ.SE è strutturata in questo modo:\n"]
["=CONTA.PIÙ.SE(F50:F61;F64;G50:G61;G64)"]
["Questo è il primo intervallo da contare"]
["Questo è il criterio per la prima corrispondenza"]
["Questo è il secondo intervallo da contare"]
["Questo è il criterio per la seconda corrispondenza"]
["Altri dettagli"]
["Avanti"]
["Altre funzioni condizionali"]
["Finora abbiamo visto le funzioni SOMMA.SE, SOMMA.PIÙ.SE, CONTA.SE e CONTA.PIÙ.SE. Ora puoi provare autonomamente con altre funzioni, come MEDIA.SE/MEDIA.PIÙ.SE, MAX.PIÙ.SE, MIN.PIÙ.SE. Sono tutte strutturate nello stesso modo, quindi una volta scritta una formula puoi semplicemente sostituire il nome della funzione con quello che vuoi usare. Abbiamo scritto tutte le funzioni necessarie per la cella E106, pronte da copiare/incollare. In alternativa, puoi provare a digitarle manualmente per esercitarti.\n\nSOMMA.SE \t=SOMMA.SE(C92:C103;C106;E92:E103) \nSOMMA.PIÙ.SE \t=SOMMA.PIÙ.SE(E92:E103;C92:C103;C106;D92:D103;D106) \nMEDIA.SE \t=MEDIA.SE(C92:C103;C106;E92:E103) \nMEDIA.PIÙ.SE\t=MEDIA.PIÙ.SE(E92:E103;C92:C103;C106;D92:D103;D106)\nCONTA.SE \t=CONTA.SE(C92:C103;C106)\nCONTA.PIÙ.SE \t=CONTA.PIÙ.SE(C92:C103;C106;D92:D103;D106) \nMAX.PIÙ.SE \t=MAX.PIÙ.SE(E92:E103;C92:C103;C106;D92:D103;D106)\nMIN.PIÙ.SE \t=MIN.PIÙ.SE(E92:E103;C92:C103;C106;D92:D103;D106)"]
["Altri dettagli"]
["Avanti"]
["SOMMA.SE con un argomento valore"]
["Ecco un esempio di funzione SOMMA.SE usando \"maggiore di\" (>) per trovare tutti i valori che superano una determinata quantità:"]
[{"$f":"SUMIF(D118:D122,\">=50\")","v":200}]
["Somma alcuni valori in base a questo criterio:"]
["...Esamina queste celle...\n "]
["...e, se il valore è maggiore di 50, sommalo.\n "]
["NOTA: se ti ritrovi a creare molte formule condizionali, tieni presente che una tabella pivot è una soluzione migliore. Per saperne di più, leggi questo articolo sulle tabelle pivot."]
["Altre informazioni sul Web"]
["Informazioni complete sulla funzione SOMMA.SE"]
["Informazioni complete sulla funzione SOMMA.PIÙ.SE"]
["Informazioni complete sulla funzione CONTA.SE"]
["Informazioni complete sulla funzione CONTA.PIÙ.SE"]
["Informazioni complete sulla funzione MEDIA.SE"]
["Informazioni complete sulla funzione MEDIA.PIÙ.SE",null,"Frutta","Quantità",null,"Frutta","Tipo","Quantità"]
["Informazioni complete sulla funzione MIN.PIÙ.SE",null,"Mele",50,null,"Mele","Fuji",50]
["Informazioni complete sulla funzione MAX.PIÙ.SE",null,"Arance",20,null,"Arance","Florida",20]
["Creare un elenco a discesa",null,"Banane",60,null,"Banane","Cavendish",60]
["Formazione gratuita su Excel disponibile online",null,"Limoni",40,null,"Limoni","Rough",40]
["Torna all'inizio",null,"Mele",50,null,"Mele","Honeycrisp",50]
["Avanti",null,"Arance",20,null,"Arance","Navel",20]
[null,null,"Banane",60,null,"Banane","Lady Finger",60]
[null,null,"Limoni",40,null,"Limoni","Eureka",40]
[null,null,"Mele",50,null,"Mele","Honeycrisp",50]
[null,null,"Arance",20,null,"Arance","Navel",20]
[null,null,"Banane",60,null,"Banane","Cavendish",60]
[null,null,"Limoni",40,null,"Limoni","Eureka",40]
[]
[null,null,"Frutta","CONTA.SE",null,"Frutta","Tipo","CONTA.PIÙ.SE"]
[null,null,"Mele",{"$f":"COUNTIF(C50:C61,C64)","v":3},null,"Arance","Florida",{"$f":"COUNTIFS(F50:F61,F64,G50:G61,G64)","v":1}]
{"$rows_empty":26}
[null,null,"Frutta","Tipo","Quantità"]
[null,null,"Mele","Fuji",50]
[null,null,"Arance","Florida",20]
[null,null,"Banane","Cavendish",60]
[null,null,"Limoni","Rough",40]
[null,null,"Mele","Honeycrisp",50]
[null,null,"Arance","Navel",20]
[null,null,"Banane","Lady Finger",60]
[null,null,"Limoni","Eureka",40]
[null,null,"Mele","Honeycrisp",50]
[null,null,"Arance","Navel",20]
[null,null,"Banane","Cavendish",60]
[null,null,"Limoni","Eureka",40]
[]
[null,null,"Frutta","Tipo","Prova"]
[null,null,"Limoni","Eureka",{"$f":"AVERAGEIFS(E92:E103,C92:C103,C106,D92:D103,D106)","v":40}]
{"$rows_empty":10}
[null,null,"Articolo","Quantità"]
[null,null,"Pane",50]
[null,null,"Ciambelle",100]
[null,null,"Biscotti",40]
[null,null,"Torte",50]
[null,null,"Crostate",20]
[{"$nulls":3},{"$f":"SUMIF(D118:D122,\">=50\")","v":200}]

{"sheet":"Creazione guidata Funzione","index":10,"n_rows":14,"n_cols":4,"rows_kept":14}
["Creazione guidata Funzione"]
["Se conosci il nome della formula che vuoi usare, ma non sai con certezza come costruirla, puoi usare la Creazione guidata Funzione.\n"]
["Seleziona la cella D10 e passa a Formule > Inserisci funzione > digita CERCA.VERT nella casella Cerca una funzione e scegli Vai. Quando viene evidenziato CERCA.VERT, fai clic su OK nella parte inferiore. Quando selezioni una funzione nell'elenco, Excel ne visualizza la sintassi.\n"]
["Immetti quindi gli argomenti della funzione nelle caselle di testo corrispondenti. Ogni volta che ne immetti uno, Excel lo valuta e mostra il relativo risultato, con il risultato finale nella parte inferiore. Man mano che accedi alle singole sezioni, i criteri per ogni argomento vengono elencati nella parte inferiore del modulo. Al termine scegli OK. Excel immette automaticamente la formula.\n\n\n",null,"Frutta","Quantità"]
["GUARDA QUI\nDovresti ottenere =CERCA.VERT(C10;C5:D8;2;FALSO)",null,"Mele",50]
["INFORMAZIONI UTILI\nPuoi digitare riferimenti di cella e intervallo oppure selezionarli con il mouse.",null,"Arance",20]
["INFORMAZIONI UTILI\nQuando accedi alla sezione dei singoli argomenti, la descrizione dell'argomento viene visualizzata nella parte inferiore del modulo, sopra il risultato della formula.\n",null,"Banane",60]
["Indietro",null,"Limoni",40]
["Avanti"]
["Altre informazioni sul Web",null,"Mele",{"$f":"VLOOKUP(C10,C5:D8,2,FALSE)","v":50}]
["Panoramica delle formule in Excel"]
["Funzioni di Excel (in base alla categoria)"]
["Funzioni di Excel (in ordine alfabetico)"]
["Formazione gratuita su Excel disponibile online"]

{"sheet":"Errori nelle formule","index":11,"n_rows":36,"n_cols":4,"rows_kept":36}
["Correzione degli errori nelle formule"]
["Se una formula contiene un errore, Excel mostra #NomeErrore. Gli errori possono essere utili perché indicano che qualcosa non funziona correttamente, ma possono essere difficili da risolvere. Per fortuna ci sono diverse opzioni che facilitano l'individuazione dell'origine dell'errore e la relativa correzione.\n"]
["Controllo errori: vai a Formule > Controllo errori. Viene visualizzata una finestra di dialogo che indica la causa generale dell'errore specifico. L'errore #N/D cella D9 è causato dal fatto che non esiste un valore corrispondente a \"Mela\". Puoi risolvere l'errore usando un valore esistente, eliminare l'errore con SE.ERRORE oppure ignorarlo, contando sul fatto scomparirà quando userai un valore effettivamente esistente.\n",null,"Frutta","Quantità"]
["Se fai clic su Informazioni sull'errore, viene visualizzato un argomento della Guida relativo al messaggio di errore. Se fai clic su Mostra passaggi del calcolo, viene visualizzata la finestra di dialogo Valuta formula.\n",null,"Mele",50]
["Ogni volta che fai clic su Valuta, Excel valuta la formula una sezione alla volta. Non specifica necessariamente perché si verifica un errore, ma indica dove. A quel punto, esamina l'argomento della Guida per capire qual è il problema presente nella formula.\n",null,"Arance",20]
["ESPERIMENTO\nQual è il problema qui? Suggerimento: vogliamo calcolare la SOMMA di tutti gli articoli.",null,"Banane",60]
["INFORMAZIONI UTILI\nFai clic su Opzioni per impostare le regole per i casi in cui gli errori in Excel vengono visualizzati o ignorati.\n",null,"Limoni",40]
["Indietro"]
["Avanti",null,"Mela",{"$f":"VLOOKUP(C9,C3:D7,2,FALSE)","v":{"$error":"#N/A"}}]
["Altre informazioni sul Web"]
["Rilevare gli errori nelle formule"]
["Come evitare errori nelle formule"]
["Valutare un formula annidata un passaggio alla volta"]
["Formazione gratuita su Excel disponibile online"]
{"$rows_empty":15}
[null,null,"Frutta","Quantità"]
[null,null,"Mele",50]
[null,null,"Arance",20]
[null,null,"Banane",60]
[null,null,"Limoni",40]
[]
[null,null,"Totale",{"$f":"sume(D31:D34)","v":{"$error":"#NAME?"}}]

{"sheet":"Altre informazioni","index":12,"n_rows":5,"n_cols":1,"rows_kept":5}
["Altre domande su Excel?"]
["Premi ALT+X e digita cosa che vuoi sapere."]
["Vai avanti. Sono disponibili altre risorse su Excel:"]
["Community: Invia domande e mettiti in contatto con altri appassionati di Excel.\n"]
["Altre novità?\nGli abbonati a Office 365 ricevono costantemente aggiornamenti e nuove funzionalità.\n\n"]